[Event "Early-Titled-Tuesday-Blitz-June-18-2024"]
[Site "Chess.com"]
[Date "2024.06.18"]
[Round "7"]
[White "BestestBP"]
[Black "Kgli1m"]
[Result "1-0"]
[WhiteElo "2265"]
[BlackElo "2096"]
[TimeControl "180+1"]
[EndTime "9:22:03 PDT"]
[Termination "BestestBP won by checkmate"]

1. e4 {[%clk 0:02:48.8]} 1... c5 {[%clk 0:02:56.6]} 2. Nf3 {[%clk 0:02:47.3]}
2... Nc6 {[%clk 0:02:57.4]} 3. d4 {[%clk 0:02:44]} 3... cxd4 {[%clk 0:02:57.2]}
4. Nxd4 {[%clk 0:02:44.9]} 4... e5 {[%clk 0:02:56.7]} 5. Nb5 {[%clk 0:02:44.2]}
5... a6 {[%clk 0:02:56.6]} 6. Nd6+ {[%clk 0:02:43.5]} 6... Bxd6 {[%clk
0:02:56.6]} 7. Qxd6 {[%clk 0:02:44.4]} 7... Qf6 {[%clk 0:02:57]} 8. Qd1 {[%clk
0:02:37]} 8... Qg6 {[%clk 0:02:54.2]} 9. Nc3 {[%clk 0:02:33.2]} 9... Nf6 {[%clk
0:02:44.6]} 10. f3 {[%clk 0:02:22.3]} 10... O-O {[%clk 0:02:43.6]} 11. Be3
{[%clk 0:01:58.2]} 11... d5 {[%clk 0:02:40.8]} 12. exd5 {[%clk 0:01:51.8]} 12...
Nb4 {[%clk 0:02:40]} 13. Bd3 {[%clk 0:01:27.4]} 13... Nxd3+ {[%clk 0:02:07.6]}
14. Qxd3 {[%clk 0:01:08.2]} 14... Bf5 {[%clk 0:02:02.8]} 15. Qd2 {[%clk
0:00:58.7]} 15... Bxc2 {[%clk 0:01:56.1]} 16. O-O {[%clk 0:00:55.5]} 16... Rad8
{[%clk 0:01:50.9]} 17. Rf2 {[%clk 0:00:53.2]} 17... Bf5 {[%clk 0:01:49.2]} 18.
Bg5 {[%clk 0:00:36.1]} 18... b5 {[%clk 0:01:38.3]} 19. Bxf6 {[%clk 0:00:30.2]}
19... Qxf6 {[%clk 0:01:27.9]} 20. Ne4 {[%clk 0:00:25.7]} 20... Qg6 {[%clk
0:01:27.9]} 21. Re1 {[%clk 0:00:20]} 21... Bxe4 {[%clk 0:01:13.3]} 22. fxe4
{[%clk 0:00:19.7]} 22... Rd6 {[%clk 0:01:04.9]} 23. Qc3 {[%clk 0:00:17.5]} 23...
Rfd8 {[%clk 0:01:05.1]} 24. Qxe5 {[%clk 0:00:17.5]} 24... f6 {[%clk 0:01:03.1]}
25. Qf4 {[%clk 0:00:16.6]} 25... Qe8 {[%clk 0:00:54.9]} 26. e5 {[%clk
0:00:14.2]} 26... Rxd5 {[%clk 0:00:50.3]} 27. e6 {[%clk 0:00:06.4]} 27... Qe7
{[%clk 0:00:44.6]} 28. Rfe2 {[%clk 0:00:06.6]} 28... R5d6 {[%clk 0:00:37.3]} 29.
h3 {[%clk 0:00:06.1]} 29... Rc8 {[%clk 0:00:37]} 30. Qf5 {[%clk 0:00:03.7]}
30... h6 {[%clk 0:00:36]} 31. Re3 {[%clk 0:00:02.5]} 31... Rcc6 {[%clk
0:00:36.4]} 32. R3e2 {[%clk 0:00:01.1]} 32... b4 {[%clk 0:00:35.4]} 33. Re3
{[%clk 0:00:01.7]} 33... a5 {[%clk 0:00:35.3]} 34. a3 {[%clk 0:00:02.2]} 34...
bxa3 {[%clk 0:00:35]} 35. bxa3 {[%clk 0:00:03.1]} 35... a4 {[%clk 0:00:35.8]}
36. R3e2 {[%clk 0:00:03.5]} 36... Rd3 {[%clk 0:00:31.9]} 37. Re3 {[%clk
0:00:03.8]} 37... Rxe3 {[%clk 0:00:29.4]} 38. Rxe3 {[%clk 0:00:04.2]} 38... Rc5
{[%clk 0:00:29.8]} 39. Qf3 {[%clk 0:00:03.8]} 39... Re5 {[%clk 0:00:27.9]} 40.
Qa8+ {[%clk 0:00:04.3]} 40... Kh7 {[%clk 0:00:27.6]} 41. Rxe5 {[%clk 0:00:04.7]}
41... fxe5 {[%clk 0:00:28]} 42. Qe4+ {[%clk 0:00:05.4]} 42... Kg8 {[%clk
0:00:27.8]} 43. Qxe5 {[%clk 0:00:05.8]} 43... Kf8 {[%clk 0:00:24.8]} 44. Qf5+
{[%clk 0:00:04.7]} 44... Ke8 {[%clk 0:00:23.1]} 45. Qg6+ {[%clk 0:00:05.1]}
45... Kd8 {[%clk 0:00:22.2]} 46. Qd3+ {[%clk 0:00:05.7]} 46... Ke8 {[%clk
0:00:22.2]} 47. Qe3 {[%clk 0:00:06.1]} 47... Qf6 {[%clk 0:00:20.3]} 48. Qe4
{[%clk 0:00:03.4]} 48... Ke7 {[%clk 0:00:19.2]} 49. Qb7+ {[%clk 0:00:02]} 49...
Kxe6 {[%clk 0:00:19.3]} 50. Qc6+ {[%clk 0:00:02.6]} 50... Kf7 {[%clk 0:00:19.4]}
51. Qxa4 {[%clk 0:00:02.8]} 51... Qb6+ {[%clk 0:00:18]} 52. Kh2 {[%clk
0:00:02.4]} 52... Qb7 {[%clk 0:00:18.5]} 53. Kh1 {[%clk 0:00:02.1]} 53... Qb1+
{[%clk 0:00:18.1]} 54. Kh2 {[%clk 0:00:02.6]} 54... Qb8+ {[%clk 0:00:18]} 55.
Kh1 {[%clk 0:00:01.8]} 55... Qb1+ {[%clk 0:00:18.4]} 56. Kh2 {[%clk 0:00:02.3]}
56... Qg6 {[%clk 0:00:18]} 57. Qf4+ {[%clk 0:00:02]} 57... Kg8 {[%clk
0:00:18.1]} 58. Qg3 {[%clk 0:00:02.6]} 58... Qa6 {[%clk 0:00:17.5]} 59. Qb3+
{[%clk 0:00:02.4]} 59... Kh7 {[%clk 0:00:17.3]} 60. Qc2+ {[%clk 0:00:02.3]}
60... Kh8 {[%clk 0:00:17.2]} 61. Qc3 {[%clk 0:00:01.9]} 61... Qe6 {[%clk
0:00:11.4]} 62. Qg3 {[%clk 0:00:02.8]} 62... Qa2 {[%clk 0:00:10.8]} 63. Qf3
{[%clk 0:00:02.4]} 63... Kh7 {[%clk 0:00:11.1]} 64. Qe4+ {[%clk 0:00:02]} 64...
Kh8 {[%clk 0:00:11.5]} 65. a4 {[%clk 0:00:02.6]} 65... Qa3 {[%clk 0:00:10.3]}
66. Qf4 {[%clk 0:00:03.1]} 66... Kh7 {[%clk 0:00:10.3]} 67. Qf5+ {[%clk
0:00:03.1]} 67... Kg8 {[%clk 0:00:10.5]} 68. a5 {[%clk 0:00:03.5]} 68... Qd6+
{[%clk 0:00:07.4]} 69. Kg1 {[%clk 0:00:03.8]} 69... Qd1+ {[%clk 0:00:07.8]} 70.
Kf2 {[%clk 0:00:04.3]} 70... Qd2+ {[%clk 0:00:07.5]} 71. Kg3 {[%clk 0:00:04.2]}
71... Qc3+ {[%clk 0:00:07.4]} 72. Kg4 {[%clk 0:00:03.7]} 72... Qc4+ {[%clk
0:00:07.3]} 73. Kh5 {[%clk 0:00:03.3]} 73... Qe2+ {[%clk 0:00:04.8]} 74. g4
{[%clk 0:00:02.6]} 74... Qg2 {[%clk 0:00:04]} 75. Kg6 {[%clk 0:00:01.7]} 75...
Qc6+ {[%clk 0:00:04.4]} 76. Kh5 {[%clk 0:00:02.1]} 76... Qg2 {[%clk 0:00:04.5]}
77. g5 {[%clk 0:00:01.9]} 77... Qe2+ {[%clk 0:00:02.9]} 78. Kg6 {[%clk
0:00:01.7]} 78... hxg5 {[%clk 0:00:03.6]} 79. Qf7+ {[%clk 0:00:01.8]} 79... Kh8
{[%clk 0:00:03.8]} 80. Qf8# {[%clk 0:00:02.7]} 1-0

[Event "Early-Titled-Tuesday-Blitz-June-18-2024"]
[Site "Chess.com"]
[Date "2024.06.18"]
[Round "7"]
[White "NigiriSushies"]
[Black "InitiatingASC"]
[Result "1-0"]
[WhiteElo "2316"]
[BlackElo "2421"]
[TimeControl "180+1"]
[EndTime "9:22:09 PDT"]
[Termination "NigiriSushies won by checkmate"]

1. Nf3 {[%clk 0:03:00.9]} 1... d5 {[%clk 0:02:59.3]} 2. b3 {[%clk 0:03:01.3]}
2... Bg4 {[%clk 0:02:58.3]} 3. Bb2 {[%clk 0:03:01.5]} 3... Bxf3 {[%clk
0:02:58.4]} 4. exf3 {[%clk 0:02:58.4]} 4... Nd7 {[%clk 0:02:58.6]} 5. c4 {[%clk
0:02:57.3]} 5... e6 {[%clk 0:02:56.1]} 6. Nc3 {[%clk 0:02:55.2]} 6... Ndf6
{[%clk 0:02:55.5]} 7. Be2 {[%clk 0:02:49.9]} 7... Bb4 {[%clk 0:02:55.2]} 8. O-O
{[%clk 0:02:46.2]} 8... Ne7 {[%clk 0:02:55]} 9. a3 {[%clk 0:02:38.8]} 9... Bd6
{[%clk 0:02:51.9]} 10. d4 {[%clk 0:02:37]} 10... c6 {[%clk 0:02:51.7]} 11. c5
{[%clk 0:02:30.5]} 11... Bc7 {[%clk 0:02:50.5]} 12. b4 {[%clk 0:02:31.1]} 12...
a6 {[%clk 0:02:49.3]} 13. a4 {[%clk 0:02:30.4]} 13... O-O {[%clk 0:02:48.4]} 14.
b5 {[%clk 0:02:30.5]} 14... axb5 {[%clk 0:02:43.9]} 15. axb5 {[%clk 0:02:31.4]}
15... Bf4 {[%clk 0:02:42.1]} 16. b6 {[%clk 0:02:27.8]} 16... Nf5 {[%clk
0:02:29.3]} 17. g3 {[%clk 0:02:06.3]} 17... Bh6 {[%clk 0:02:27.7]} 18. Qd3
{[%clk 0:01:59.8]} 18... Qe7 {[%clk 0:02:24.9]} 19. Kg2 {[%clk 0:01:49.1]} 19...
Nh5 {[%clk 0:02:17.4]} 20. Ra7 {[%clk 0:01:32.4]} 20... Qg5 {[%clk 0:02:15.6]}
21. Bc1 {[%clk 0:01:23.5]} 21... Qg6 {[%clk 0:01:53.7]} 22. Bxh6 {[%clk
0:01:14.3]} 22... Qxh6 {[%clk 0:01:54]} 23. Rfa1 {[%clk 0:01:12.1]} 23... Rab8
{[%clk 0:01:52.2]} 24. f4 {[%clk 0:01:01.8]} 24... Nh4+ {[%clk 0:01:29.4]} 25.
Kh1 {[%clk 0:00:46.1]} 25... Ng6 {[%clk 0:01:22.7]} 26. Nd1 {[%clk 0:00:35.2]}
26... Nhxf4 {[%clk 0:01:17.2]} 27. gxf4 {[%clk 0:00:30]} 27... Nxf4 {[%clk
0:01:17.6]} 28. Qf3 {[%clk 0:00:27.5]} 28... Qf6 {[%clk 0:01:10.8]} 29. R1a4
{[%clk 0:00:25.4]} 29... Qg5 {[%clk 0:00:53.3]} 30. Ne3 {[%clk 0:00:20.5]} 30...
f5 {[%clk 0:00:39.8]} 31. Bf1 {[%clk 0:00:18.1]} 31... h5 {[%clk 0:00:24.3]} 32.
Qg3 {[%clk 0:00:15.6]} 32... Qh6 {[%clk 0:00:24.7]} 33. Ng2 {[%clk 0:00:10.9]}
33... Nxg2 {[%clk 0:00:21.3]} 34. Qxg2 {[%clk 0:00:08.2]} 34... g5 {[%clk
0:00:21.5]} 35. h4 {[%clk 0:00:04.2]} 35... g4 {[%clk 0:00:21.1]} 36. f3 {[%clk
0:00:02.8]} 36... Kf7 {[%clk 0:00:18.3]} 37. Be2 {[%clk 0:00:02.7]} 37... Kf6
{[%clk 0:00:18]} 38. fxg4 {[%clk 0:00:03]} 38... hxg4 {[%clk 0:00:18.1]} 39. Qg3
{[%clk 0:00:02.7]} 39... Rh8 {[%clk 0:00:17.5]} 40. Qe5+ {[%clk 0:00:02.5]}
40... Kg6 {[%clk 0:00:16.9]} 41. Qxe6+ {[%clk 0:00:02.4]} 41... Kh5 {[%clk
0:00:17.3]} 42. Qxh6+ {[%clk 0:00:02.7]} 42... Kxh6 {[%clk 0:00:17.2]} 43. Kg2
{[%clk 0:00:03.1]} 43... f4 {[%clk 0:00:17.2]} 44. Bxg4 {[%clk 0:00:03.3]} 44...
Rhg8 {[%clk 0:00:17.6]} 45. Kf3 {[%clk 0:00:03.7]} 45... Kg6 {[%clk 0:00:17.1]}
46. Ra1 {[%clk 0:00:03.6]} 46... Kf6 {[%clk 0:00:17.3]} 47. h5 {[%clk
0:00:04.1]} 47... Rge8 {[%clk 0:00:16.5]} 48. Rh1 {[%clk 0:00:03.2]} 48... Re3+
{[%clk 0:00:16.8]} 49. Kf2 {[%clk 0:00:03.3]} 49... Rg8 {[%clk 0:00:16.3]} 50.
Bf3 {[%clk 0:00:03.1]} 50... Rg3 {[%clk 0:00:15.9]} 51. Bg2 {[%clk 0:00:02.4]}
51... Rd3 {[%clk 0:00:15.7]} 52. Rh4 {[%clk 0:00:02.4]} 52... Rd2+ {[%clk
0:00:16.2]} 53. Kf1 {[%clk 0:00:02.9]} 53... Rdxg2 {[%clk 0:00:16.2]} 54. Rxf4+
{[%clk 0:00:03.6]} 54... Kg5 {[%clk 0:00:16.6]} 55. Rf2 {[%clk 0:00:04.1]} 55...
Rg1+ {[%clk 0:00:17]} 56. Ke2 {[%clk 0:00:04.6]} 56... Rb3 {[%clk 0:00:16.9]}
57. Rxb7 {[%clk 0:00:04.1]} 57... Rb2+ {[%clk 0:00:17.3]} 58. Kf3 {[%clk
0:00:04.1]} 58... Rb3+ {[%clk 0:00:17.6]} 59. Ke2 {[%clk 0:00:04.7]} 59... Rb2+
{[%clk 0:00:14.7]} 60. Ke3 {[%clk 0:00:04.9]} 60... Rg3+ {[%clk 0:00:13.9]} 61.
Rf3 {[%clk 0:00:04]} 61... Rb3+ {[%clk 0:00:14.4]} 62. Kf2 {[%clk 0:00:04.3]}
62... Rbxf3+ {[%clk 0:00:14.5]} 63. Ke2 {[%clk 0:00:04.7]} 63... Kf4 {[%clk
0:00:14.9]} 64. Rf7+ {[%clk 0:00:04.6]} 64... Ke4 {[%clk 0:00:14.6]} 65. Re7+
{[%clk 0:00:01.5]} 65... Kxd4 {[%clk 0:00:14.8]} 66. b7 {[%clk 0:00:02.4]} 66...
Rb3 {[%clk 0:00:13.4]} 67. h6 {[%clk 0:00:02.3]} 67... Rh3 {[%clk 0:00:13.8]}
68. h7 {[%clk 0:00:02.6]} 68... Kxc5 {[%clk 0:00:14.1]} 69. Kf2 {[%clk
0:00:02.5]} 69... d4 {[%clk 0:00:14.4]} 70. Ke2 {[%clk 0:00:02.8]} 70... d3+
{[%clk 0:00:14.2]} 71. Kd2 {[%clk 0:00:03.2]} 71... Rb2+ {[%clk 0:00:14.4]} 72.
Kd1 {[%clk 0:00:01.1]} 72... Rb1+ {[%clk 0:00:13.9]} 73. Kd2 {[%clk 0:00:01.4]}
73... Rb2+ {[%clk 0:00:14]} 74. Kd1 {[%clk 0:00:02]} 74... Rh1+ {[%clk
0:00:14.1]} 75. Re1 {[%clk 0:00:02.8]} 75... Rb1+ {[%clk 0:00:13.6]} 76. Kd2
{[%clk 0:00:03.4]} 76... Rhxe1 {[%clk 0:00:13.9]} 77. h8=Q {[%clk 0:00:03.7]}
77... Rbd1+ {[%clk 0:00:13.9]} 78. Kc3 {[%clk 0:00:04.2]} 78... Rc1+ {[%clk
0:00:13.2]} 79. Kxd3 {[%clk 0:00:04.8]} 79... Red1+ {[%clk 0:00:13.3]} 80. Ke2
{[%clk 0:00:05.4]} 80... Re1+ {[%clk 0:00:13.5]} 81. Kd2 {[%clk 0:00:06]} 81...
Rcd1+ {[%clk 0:00:13.6]} 82. Kc2 {[%clk 0:00:06.2]} 82... Rc1+ {[%clk
0:00:13.9]} 83. Kb2 {[%clk 0:00:06.7]} 83... Rb1+ {[%clk 0:00:14.5]} 84. Ka2
{[%clk 0:00:07]} 84... Rxb7 {[%clk 0:00:14.5]} 85. Qc3+ {[%clk 0:00:07.2]} 85...
Kb6 {[%clk 0:00:14.4]} 86. Qxe1 {[%clk 0:00:07.7]} 86... Ra7+ {[%clk 0:00:15.1]}
87. Kb3 {[%clk 0:00:07.5]} 87... Ra5 {[%clk 0:00:15.6]} 88. Qe7 {[%clk
0:00:06.8]} 88... Rb5+ {[%clk 0:00:15.8]} 89. Kc4 {[%clk 0:00:07.2]} 89... Rd5
{[%clk 0:00:16.2]} 90. Kb4 {[%clk 0:00:04.7]} 90... Rd4+ {[%clk 0:00:16.1]} 91.
Kc3 {[%clk 0:00:04.6]} 91... Rd5 {[%clk 0:00:17]} 92. Qf8 {[%clk 0:00:03.2]}
92... Rc5+ {[%clk 0:00:17]} 93. Kb4 {[%clk 0:00:03]} 93... Rb5+ {[%clk
0:00:17.7]} 94. Kc4 {[%clk 0:00:03.7]} 94... Rd5 {[%clk 0:00:18.1]} 95. Qb8+
{[%clk 0:00:04]} 95... Ka6 {[%clk 0:00:18.7]} 96. Qc7 {[%clk 0:00:04.5]} 96...
Rb5 {[%clk 0:00:14.9]} 97. Qxc6+ {[%clk 0:00:04.1]} 97... Rb6 {[%clk 0:00:15.8]}
98. Qa8# {[%clk 0:00:04.5]} 1-0

[Event "Early-Titled-Tuesday-Blitz-June-18-2024"]
[Site "Chess.com"]
[Date "2024.06.18"]
[Round "7"]
[White "dennisodessa"]
[Black "Abund"]
[Result "1-0"]
[WhiteElo "2612"]
[BlackElo "2710"]
[TimeControl "180+1"]
[EndTime "9:22:12 PDT"]
[Termination "dennisodessa won by checkmate"]

1. d4 {[%clk 0:02:02.6]} 1... d5 {[%clk 0:02:59.2]} 2. c4 {[%clk 0:02:00.7]}
2... c6 {[%clk 0:02:59.7]} 3. Nf3 {[%clk 0:02:00.5]} 3... Nf6 {[%clk 0:02:59.6]}
4. Nbd2 {[%clk 0:02:00.9]} 4... g6 {[%clk 0:02:51.8]} 5. e3 {[%clk 0:02:00.5]}
5... Bg7 {[%clk 0:02:52.2]} 6. Bd3 {[%clk 0:02:00]} 6... O-O {[%clk 0:02:52.2]}
7. O-O {[%clk 0:01:59.8]} 7... b6 {[%clk 0:02:39]} 8. Qe2 {[%clk 0:01:51.3]}
8... a5 {[%clk 0:02:37.7]} 9. b3 {[%clk 0:01:07]} 9... Na6 {[%clk 0:02:36.9]}
10. a3 {[%clk 0:01:02.4]} 10... Bb7 {[%clk 0:02:24]} 11. Bb2 {[%clk 0:00:57.3]}
11... e6 {[%clk 0:02:22.5]} 12. Rac1 {[%clk 0:00:51.9]} 12... Qe7 {[%clk
0:02:22.8]} 13. Ne5 {[%clk 0:00:39.7]} 13... Rfc8 {[%clk 0:02:14.6]} 14. Rc2
{[%clk 0:00:39]} 14... Nd7 {[%clk 0:02:09]} 15. Nxd7 {[%clk 0:00:34.5]} 15...
Qxd7 {[%clk 0:02:09.9]} 16. cxd5 {[%clk 0:00:34.4]} 16... exd5 {[%clk
0:02:03.1]} 17. Rfc1 {[%clk 0:00:34.9]} 17... Nc7 {[%clk 0:02:02.8]} 18. Nf3
{[%clk 0:00:29.1]} 18... Qd6 {[%clk 0:01:51.2]} 19. Ne5 {[%clk 0:00:26.7]} 19...
Ne6 {[%clk 0:01:51.4]} 20. Qf3 {[%clk 0:00:20.7]} 20... Rc7 {[%clk 0:01:49.2]}
21. Ng4 {[%clk 0:00:17.3]} 21... Kh8 {[%clk 0:01:42.6]} 22. Qg3 {[%clk
0:00:15.7]} 22... Qe7 {[%clk 0:01:37.7]} 23. h4 {[%clk 0:00:10.6]} 23... h5
{[%clk 0:01:08.8]} 24. Ne5 {[%clk 0:00:10.8]} 24... Nf8 {[%clk 0:01:08.8]} 25.
Nxc6 {[%clk 0:00:08.5]} 25... Bxc6 {[%clk 0:00:46.4]} 26. Rxc6 {[%clk
0:00:09.4]} 26... Rxc6 {[%clk 0:00:47.3]} 27. Rxc6 {[%clk 0:00:10]} 27... Qb7
{[%clk 0:00:47.9]} 28. Qc7 {[%clk 0:00:09.2]} 28... Qxc7 {[%clk 0:00:44.4]} 29.
Rxc7 {[%clk 0:00:10.1]} 29... Kg8 {[%clk 0:00:45.1]} 30. Rb7 {[%clk 0:00:09.3]}
30... Ne6 {[%clk 0:00:41.3]} 31. Rxb6 {[%clk 0:00:10.2]} 31... Bf6 {[%clk
0:00:41.9]} 32. Rb5 {[%clk 0:00:10.1]} 32... Nc7 {[%clk 0:00:36.7]} 33. Rc5
{[%clk 0:00:10.1]} 33... Ra7 {[%clk 0:00:36.5]} 34. g3 {[%clk 0:00:09.8]} 34...
Rb7 {[%clk 0:00:36.8]} 35. Bc2 {[%clk 0:00:09.6]} 35... Ra7 {[%clk 0:00:32.2]}
36. Bc3 {[%clk 0:00:09.4]} 36... a4 {[%clk 0:00:29.3]} 37. bxa4 {[%clk
0:00:10.3]} 37... Be7 {[%clk 0:00:29.4]} 38. Rc6 {[%clk 0:00:09.7]} 38... Ne6
{[%clk 0:00:27.8]} 39. a5 {[%clk 0:00:10.6]} 39... Bxa3 {[%clk 0:00:27.3]} 40.
Bd3 {[%clk 0:00:08.4]} 40... Kf8 {[%clk 0:00:26]} 41. a6 {[%clk 0:00:07.2]}
41... Ke7 {[%clk 0:00:26.1]} 42. Ba5 {[%clk 0:00:07.8]} 42... Kd7 {[%clk
0:00:25.8]} 43. Rc2 {[%clk 0:00:08.4]} 43... Bd6 {[%clk 0:00:24.9]} 44. Bb5+
{[%clk 0:00:08.3]} 44... Ke7 {[%clk 0:00:24.9]} 45. Bb6 {[%clk 0:00:09.1]} 45...
Ra8 {[%clk 0:00:23.7]} 46. a7 {[%clk 0:00:10]} 46... Nd8 {[%clk 0:00:19.7]} 47.
Ba6 {[%clk 0:00:08.6]} 47... Kd7 {[%clk 0:00:18.9]} 48. Bb5+ {[%clk 0:00:08.7]}
48... Ke7 {[%clk 0:00:18.9]} 49. Kg2 {[%clk 0:00:08.9]} 49... Ke6 {[%clk
0:00:10.5]} 50. f3 {[%clk 0:00:08.7]} 50... f6 {[%clk 0:00:06.8]} 51. e4 {[%clk
0:00:08.4]} 51... dxe4 {[%clk 0:00:04.6]} 52. fxe4 {[%clk 0:00:09.2]} 52... Ke7
{[%clk 0:00:04.9]} 53. Bc4 {[%clk 0:00:04]} 53... Bc7 {[%clk 0:00:01.9]} 54.
Bxc7 {[%clk 0:00:03.6]} 54... Rxa7 {[%clk 0:00:02.5]} 55. Bxd8+ {[%clk 0:00:04]}
55... Kxd8 {[%clk 0:00:03.2]} 56. Bd5 {[%clk 0:00:02.8]} 56... Ra4 {[%clk
0:00:03.6]} 57. Rd2 {[%clk 0:00:03.5]} 57... Ke7 {[%clk 0:00:03.7]} 58. Kf3
{[%clk 0:00:04.2]} 58... Ra3+ {[%clk 0:00:04.3]} 59. Kf4 {[%clk 0:00:05.1]}
59... Kd6 {[%clk 0:00:04.6]} 60. Rb2 {[%clk 0:00:05.1]} 60... Rd3 {[%clk
0:00:03.1]} 61. Rb6+ {[%clk 0:00:05.2]} 61... Ke7 {[%clk 0:00:03.8]} 62. Re6+
{[%clk 0:00:05.7]} 62... Kf7 {[%clk 0:00:04.5]} 63. Rb6+ {[%clk 0:00:05.1]}
63... Ke7 {[%clk 0:00:04.4]} 64. Rb7+ {[%clk 0:00:05.3]} 64... Ke8 {[%clk
0:00:03.1]} 65. Rf7 {[%clk 0:00:06]} 65... f5 {[%clk 0:00:02.4]} 66. Rf6 {[%clk
0:00:02.8]} 66... Rxd4 {[%clk 0:00:02.4]} 67. Ke5 {[%clk 0:00:02.7]} 67... Rd2
{[%clk 0:00:02.3]} 68. Rxg6 {[%clk 0:00:03.6]} 68... fxe4 {[%clk 0:00:02.6]} 69.
Bxe4 {[%clk 0:00:04.5]} 69... Kf7 {[%clk 0:00:02.8]} 70. Rg5 {[%clk 0:00:04.8]}
70... Ra2 {[%clk 0:00:02.5]} 71. Bd5+ {[%clk 0:00:03.7]} 71... Ke7 {[%clk
0:00:03.1]} 72. Rxh5 {[%clk 0:00:04.6]} 72... Re2+ {[%clk 0:00:02.7]} 73. Be4
{[%clk 0:00:04.9]} 73... Re3 {[%clk 0:00:03.3]} 74. Rh7+ {[%clk 0:00:05.8]}
74... Kf8 {[%clk 0:00:03.6]} 75. Kf4 {[%clk 0:00:06.7]} 75... Ra3 {[%clk
0:00:03.7]} 76. Rb7 {[%clk 0:00:07.6]} 76... Ra4 {[%clk 0:00:03.8]} 77. h5
{[%clk 0:00:07.9]} 77... Ra6 {[%clk 0:00:03.6]} 78. Rb5 {[%clk 0:00:07.1]} 78...
Kg7 {[%clk 0:00:03.8]} 79. Rg5+ {[%clk 0:00:07.4]} 79... Kh8 {[%clk 0:00:02.5]}
80. Rg6 {[%clk 0:00:08.3]} 80... Ra7 {[%clk 0:00:02.6]} 81. Rb6 {[%clk
0:00:06.5]} 81... Kg7 {[%clk 0:00:02.9]} 82. h6+ {[%clk 0:00:06.5]} 82... Kh8
{[%clk 0:00:03.4]} 83. Rb8# {[%clk 0:00:07]} 1-0